bitfinex-derivatives/quotes_BTCF0:USTF0_20250429
["timestamp","ask_amount","ask_price","bid_price","bid_amount"]
[1745926087321,0.1173,95284.0,95282.0,0.2098283]
[1745926087726,0.1173,95284.0,95283.0,0.2098275]
[1745926088921,0.2098283,95283.0,95280.0,0.36852502]
[1745926089119,0.222248,95284.0,95280.0,0.36852502]
[1745926089120,0.1229,95282.0,95280.0,0.3608]
[1745926089320,0.1229,95282.0,95281.0,0.2098319]
[1745926090017,0.19879677,95300.0,95299.0,0.2097923]
[1745926090223,0.204932,95300.0,95281.0,0.059]
[1745926090422,0.204932,95300.0,95281.0,0.0524579]
[1745926090423,0.001,95284.0,95281.0,0.0524579]
[1745926090618,0.001,95284.0,95280.0,0.36880215]
[1745926090818,0.0524573,95283.0,95280.0,0.36880215]
[1745926091125,0.0524539,95289.0,95282.0,0.2098291]
[1745926091327,0.2098259,95284.0,95282.0,0.2098291]
[1745926091623,0.0623,95283.0,95282.0,0.2098291]
[1745926091825,0.2721275,95283.0,95282.0,0.2098291]
[1745926092228,0.1,95300.0,95290.0,0.2098121]
[1745926092530,0.2097983,95297.0,95291.0,0.3608]
[1745926092720,0.123,95296.0,95294.0,0.2098028]
[1745926092917,0.3327996,95296.0,95294.0,0.2098028]
[1745926093121,0.123,95296.0,95292.0,0.2098063]
[1745926093323,0.2098044,95294.0,95293.0,0.2098055]
[1745926094622,0.001,95296.0,95295.0,0.2098011]
[1745926095327,0.001,95296.0,95295.0,0.2675011]
[1745926095822,0.004,95296.0,95295.0,0.2675011]
[1745926096223,0.003,95296.0,95295.0,0.2675011]
[1745926097026,0.005,95296.0,95295.0,0.2675011]
[1745926103832,0.002,95296.0,95295.0,0.2705011]
[1745926105035,0.0598,95299.0,95298.0,0.2097945]
[1745926106624,0.0598,95299.0,95298.0,0.2117945]
[1745926107333,0.0598,95299.0,95298.0,0.2127945]
[1745926108137,0.1218,95299.0,95298.0,0.2107945]
[1745926108338,0.1218,95299.0,95298.0,0.2117945]
[1745926108836,0.3315923,95299.0,95298.0,0.002]
[1745926109138,0.3315923,95299.0,95298.0,0.2117945]
[1745926111231,0.1218,95299.0,95298.0,0.2117945]
[1745926111427,0.3315923,95299.0,95298.0,0.2107945]
[1745926111628,0.3315923,95299.0,95298.0,0.2117945]
[1745926113435,0.1,95300.0,95299.0,0.2097923]
[1745926113739,0.3608,95324.0,95299.0,0.2097923]
[1745926113740,0.0623,95307.0,95306.0,0.2097769]
[1745926114335,0.0623,95307.0,95306.0,0.3302769]
[1745926115938,0.0633,95307.0,95306.0,0.3302769]
[1745926116741,0.0643,95307.0,95306.0,0.3302769]
[1745926116942,0.1229,95307.0,95306.0,0.3302769]
[1745926117243,0.3326747,95307.0,95306.0,0.3302769]
[1745926117842,0.3326747,95307.0,95306.0,0.0631]
[1745926118239,0.3326747,95307.0,95306.0,0.2728769]
[1745926125740,0.1229,95307.0,95306.0,0.2728769]
[1745926126039,0.1229,95307.0,95306.0,0.6336769]
[1745926126859,0.1229,95307.0,95306.0,0.6969769]
[1745926128935,0.3326747,95307.0,95306.0,0.6336769]
[1745926129542,0.1229,95307.0,95306.0,0.6336769]
[1745926129746,0.3326747,95307.0,95306.0,0.6336769]
[1745926131443,0.1229,95307.0,95306.0,0.6336769]
[1745926131645,0.1229,95307.0,95306.0,0.6945769]
[1745926132849,0.3326747,95307.0,95306.0,0.6945769]
[1745926133441,0.1229,95307.0,95306.0,0.6945769]
[1745926134150,0.002,95307.0,95306.0,0.6945769]
[1745926134450,0.0625,95364.0,95324.0,0.2097373]
[1745926134654,0.1805,95356.0,95324.0,1.0713373]
[1745926134946,0.1805,95356.0,95324.0,2.9262413]
[1745926135246,0.0635,95346.0,95324.0,3.0462413]
[1745926135450,0.059,95345.0,95324.0,3.0482413]
[1745926135949,0.059,95345.0,95344.0,0.2096933]
[1745926136145,0.2686911,95345.0,95344.0,0.3608]
[1745926136350,0.059,95345.0,95344.0,0.3608]
[1745926136535,0.059,95345.0,95344.0,0.5704933]
[1745926136741,0.2686911,95345.0,95344.0,0.5704933]
[1745926136937,0.059,95345.0,95344.0,0.5704933]
[1745926137241,0.2706911,95345.0,95344.0,0.5704933]
[1745926137447,0.2706911,95345.0,95344.0,0.3608]
[1745926138847,0.2706911,95345.0,95344.0,0.36860258]
[1745926139047,0.2706911,95345.0,95344.0,0.3608]
[1745926139249,0.2097439,95321.0,95320.0,0.3608]
[1745926139449,0.2097586,95318.0,95317.0,0.2097518]
[1745926139654,0.3320461,95320.0,95319.0,0.2097483]
[1745926140151,0.1223,95320.0,95319.0,0.5705483]
[1745926140839,0.1818,95320.0,95319.0,0.5705483]
[1745926141246,0.1818,95320.0,95319.0,0.5745483]
[1745926141445,0.1818,95320.0,95319.0,0.5785483]
[1745926141863,0.1818,95320.0,95319.0,0.5745483]
[1745926142053,0.1818,95320.0,95319.0,0.5765483]
[1745926142942,0.1818,95320.0,95319.0,0.5745483]
[1745926143641,0.1818,95320.0,95319.0,0.5725483]
[1745926143850,0.1818,95320.0,95319.0,0.5745483]
[1745926144048,0.1818,95320.0,95319.0,0.3648]
[1745926144355,0.1818,95320.0,95319.0,0.5745483]
[1745926147054,0.1818,95320.0,95319.0,0.5725483]
[1745926147352,0.1818,95320.0,95319.0,0.5745483]
[1745926147850,0.3915461,95320.0,95319.0,0.5745483]
[1745926148250,0.3915461,95320.0,95319.0,0.5725483]
[1745926148450,0.3915461,95320.0,95319.0,0.5735483]
[1745926148754,0.3915461,95320.0,95319.0,0.3638]
[1745926149058,0.3915461,95320.0,95319.0,0.2127483]
[1745926149253,0.3915461,95320.0,95319.0,0.003]
[1745926149447,0.3915461,95320.0,95319.0,0.2127483]
[1745926149956,0.3915461,95320.0,95319.0,0.003]
[1745926150162,0.2097637,95312.0,95311.0,0.5705636]
[1745926150356,0.2097637,95312.0,95311.0,0.57828141]
[1745926151449,0.2097637,95312.0,95311.0,0.57928141]
[1745926152861,0.2097637,95312.0,95311.0,0.57828141]
[1745926153063,0.2097637,95312.0,95311.0,0.57928141]
[1745926153450,0.2097637,95312.0,95311.0,0.21848141]
[1745926153956,0.2097637,95312.0,95311.0,0.00771781]
[1745926154262,0.2097637,95312.0,95311.0,0.2097636]
[1745926155061,0.2097637,95312.0,95311.0,0.21767349]
[1745926158461,0.2097637,95312.0,95311.0,0.21767579]
[1745926158661,0.2097637,95312.0,95311.0,0.2097659]
[1745926159758,0.2097637,95312.0,95311.0,0.21782612]
[1745926165462,0.2097637,95312.0,95311.0,0.00806022]
[1745926165763,0.2097659,95311.0,95310.0,0.3608]
[1745926165951,0.2683659,95311.0,95310.0,0.5705681]
[1745926166154,0.2097725,95308.0,95307.0,0.00157385]
[1745926166468,0.2097725,95308.0,95307.0,0.21134855]
[1745926167552,0.2107725,95308.0,95307.0,0.21134855]
[1745926169463,0.2622645,95292.0,95291.0,0.2622598]
[1745926169863,0.4444645,95292.0,95291.0,0.2622598]
[1745926170762,0.4444645,95292.0,95291.0,0.2632598]
[1745926171265,0.4444645,95292.0,95291.0,0.2642598]
[1745926172367,0.4444645,95292.0,95291.0,0.27214628]
[1745926172570,0.4444645,95292.0,95291.0,0.27114628]
[1745926173470,0.4444645,95292.0,95291.0,0.27014628]
[1745926175761,0.4444645,95292.0,95291.0,0.00788648]
[1745926175968,0.4444645,95292.0,95291.0,0.2098099]
[1745926176273,0.2098165,95289.0,95288.0,0.2098155]
[1745926176769,0.3282165,95289.0,95288.0,0.2716155]
[1745926177675,0.1184,95289.0,95288.0,0.27943743]
[1745926177876,0.1184,95289.0,95288.0,0.33493743]
[1745926178167,0.0598,95292.0,95291.0,0.2098099]
[1745926178375,0.0626,95295.0,95294.0,0.2098033]
[1745926178968,0.2724011,95295.0,95294.0,0.2693033]
[1745926179971,0.2734011,95295.0,95294.0,0.2693033]
[1745926180878,0.2724011,95295.0,95294.0,0.2713033]
[1745926182176,0.2724011,95295.0,95294.0,0.2703033]
[1745926183077,0.2734011,95295.0,95294.0,0.2693033]
[1745926184369,0.2724011,95295.0,95294.0,0.2693033]
[1745926184965,0.2734011,95295.0,95294.0,0.2693033]
[1745926185364,0.2744011,95295.0,95294.0,0.2693033]
[1745926185770,0.2744011,95295.0,95294.0,0.6301033]
[1745926186666,0.3608,95320.0,95294.0,0.915236]
[1745926186864,0.3146817,95304.0,95303.0,0.2097747]
[1745926187077,0.3146817,95304.0,95303.0,0.5705747]
[1745926187466,0.0524463,95304.0,95296.0,0.0524491]
[1745926187774,0.2097945,95299.0,95298.0,0.2097928]
[1745926188569,0.3301945,95299.0,95298.0,0.2097928]
[1745926189172,0.3301945,95299.0,95298.0,0.2107928]
[1745926190274,0.3301945,95299.0,95298.0,0.2117928]
[1745926199075,0.3301945,95299.0,95294.0,0.3608]
[1745926199378,0.3301945,95299.0,95272.0,0.00157443]
[1745926199379,0.2098209,95287.0,95286.0,0.2098165]
[1745926199585,0.5706209,95287.0,95286.0,0.2098165]
[1745926199979,0.7524209,95287.0,95286.0,0.2098165]
[1745926200375,0.2098209,95286.0,95285.0,0.21087258]
[1745926200585,0.2098209,95286.0,95285.0,0.00104948]
[1745926200777,0.3313209,95286.0,95285.0,0.21087258]
[1745926201689,0.3313209,95286.0,95285.0,0.21864674]
[1745926202688,0.3323209,95286.0,95285.0,0.21087258]
[1745926203785,0.3333209,95286.0,95285.0,0.21087258]
[1745926205190,0.2098495,95273.0,95266.0,0.3608]
[1745926205397,0.2098495,95273.0,95267.0,0.0524656]
[1745926205596,0.2098495,95273.0,95272.0,0.21142613]
[1745926206096,0.3310495,95273.0,95272.0,0.21142613]
[1745926206589,0.3310495,95273.0,95272.0,0.21342613]
[1745926206785,0.3310495,95273.0,95272.0,0.21542613]
[1745926208387,0.3310495,95273.0,95272.0,0.00557443]
[1745926210699,0.3310495,95273.0,95272.0,0.21542613]
[1745926211094,0.1212,95273.0,95272.0,0.21542613]
[1745926211401,0.0624,95274.0,95273.0,0.2098495]
[1745926211590,0.0624,95274.0,95273.0,0.3289495]
[1745926212385,0.0624,95274.0,95273.0,0.2734495]
[1745926212798,0.0624,95274.0,95273.0,0.2754495]
[1745926213497,0.0624,95274.0,95273.0,0.2774495]
[1745926227799,0.0624,95274.0,95273.0,0.2138495]
[1745926227995,0.2722473,95274.0,95273.0,0.004]
[1745926228195,0.2098495,95273.0,95272.0,0.00157443]
[1745926228395,0.3470495,95273.0,95272.0,0.00157443]
[1745926230507,0.3470495,95273.0,95272.0,0.00357443]
[1745926231202,0.3470495,95273.0,95272.0,0.00457443]
[1745926232007,0.3470495,95273.0,95260.0,0.209878]
[1745926232008,0.2098782,95261.0,95260.0,0.209878]
[1745926232210,0.5706782,95261.0,95260.0,0.2176956]
[1745926232411,0.7638782,95261.0,95260.0,0.2176956]
[1745926232599,0.7638782,95261.0,95260.0,0.209878]
[1745926233410,0.7638782,95261.0,95260.0,0.213878]
[1745926234907,0.1932,95261.0,95260.0,0.216878]
[1745926235102,0.403076,95261.0,95260.0,0.216878]
[1745926235309,0.763876,95261.0,95260.0,0.216878]
[1745926236504,0.763876,95261.0,95260.0,0.007]
[1745926236704,0.763876,95261.0,95260.0,0.2168782]
[1745926240101,0.763876,95261.0,95260.0,0.007]
[1745926240302,0.763876,95261.0,95260.0,0.2168782]
[1745926245812,0.763876,95261.0,95260.0,0.007]
[1745926246002,0.209887,95256.0,95255.0,0.21093741]
[1745926247010,0.336187,95256.0,95255.0,0.21093741]
[1745926247212,0.336187,95256.0,95255.0,0.21393741]
[1745926247516,0.3148696,95249.0,95248.0,0.2098917]
[1745926248820,0.3148696,95249.0,95248.0,0.2158917]
[1745926249514,0.3148696,95249.0,95243.0,0.209914]
[1745926249515,0.2099134,95244.0,95243.0,0.209914]
[1745926249719,0.3608,95244.0,95243.0,0.209914]
[1745926249920,0.1259,95245.0,95244.0,0.2099134]
[1745926250108,0.0623,95245.0,95244.0,0.21762998]
[1745926250310,0.2722112,95245.0,95244.0,0.21762998]
[1745926251210,0.2722112,95245.0,95244.0,0.22062998]
[1745926252823,0.2722112,95245.0,95244.0,0.28702998]
[1745926253017,0.2722112,95245.0,95244.0,0.01071658]
[1745926253216,0.2722112,95245.0,95244.0,0.22062998]
[1745926253711,0.2722112,95245.0,95244.0,0.22162998]
[1745926254908,0.2722112,95245.0,95244.0,0.01171658]
[1745926255115,0.2722112,95245.0,95244.0,0.004]
[1745926256919,0.2099267,95238.0,95237.0,0.00157501]
[1745926257108,0.5707267,95238.0,95237.0,0.21150391]
[1745926257308,0.5707267,95238.0,95237.0,0.00157501]
[1745926257509,0.2099311,95237.0,95236.0,0.20993]
[1745926257711,0.2758311,95237.0,95236.0,0.20993]
[1745926259317,0.2758311,95237.0,95236.0,0.21193]
[1745926260631,0.2758311,95237.0,95236.0,0.21293]
[1745926261822,0.0659,95237.0,95236.0,0.21293]
[1745926262124,0.2758289,95237.0,95236.0,0.21293]
[1745926264321,0.2758289,95237.0,95236.0,0.003]
[1745926264528,0.6366289,95237.0,95236.0,0.003]
[1745926264716,0.6366289,95237.0,95236.0,0.2129311]
[1745926265427,0.6366289,95237.0,95236.0,0.003]
[1745926265828,0.6366289,95237.0,95236.0,0.001]
[1745926266719,0.6366289,95237.0,95236.0,0.2109311]
[1745926267026,0.6366289,95237.0,95236.0,0.001]
[1745926267418,0.2099311,95236.0,95235.0,0.21150805]
[1745926267619,0.2759311,95236.0,95235.0,0.00157505]
[1745926267928,0.3442311,95236.0,95235.0,0.00157505]
[1745926268422,0.3442311,95236.0,95202.0,0.00157559]
[1745926268423,0.0524877,95228.0,95223.0,0.2099586]
[1745926268625,0.5707531,95226.0,95223.0,0.209959]
[1745926268815,0.5707531,95226.0,95225.0,0.21100544]
[1745926269014,0.7053531,95226.0,95225.0,0.21100544]
[1745926269626,0.7053531,95226.0,95225.0,0.21400544]
[1745926270723,0.7053531,95226.0,95225.0,0.21700544]
[1745926271226,0.7053531,95226.0,95225.0,0.21400544]
[1745926271415,0.7053531,95226.0,95225.0,0.21700544]
[1745926272528,0.3445531,95226.0,95225.0,0.28110544]
[1745926273830,0.3445531,95226.0,95225.0,0.00705014]
[1745926274027,0.7053531,95226.0,95225.0,0.00705014]
[1745926277734,0.7053531,95226.0,95225.0,0.00505014]
[1745926280836,0.7053531,95226.0,95225.0,0.21500544]
[1745926281428,0.7053531,95226.0,95225.0,0.00505014]
[1745926281722,0.7053531,95226.0,95225.0,0.21500544]
[1745926282936,0.7053531,95226.0,95225.0,0.00505014]
[1745926283134,0.2099619,95222.0,95221.0,0.2624483]
[1745926283438,0.2099774,95215.0,95214.0,0.3819603]
[1745926283634,0.5707774,95215.0,95214.0,0.3819603]
[1745926284533,0.6992774,95215.0,95214.0,0.3819603]
[1745926285134,0.7002774,95215.0,95214.0,0.26482736]
[1745926285434,0.7002774,95215.0,95214.0,0.26882736]
[1745926286934,0.7002774,95215.0,95214.0,0.21633306]
[1745926287234,0.7002774,95215.0,95214.0,0.16383876]
[1745926287634,0.3394774,95215.0,95214.0,0.16383876]
[1745926288331,0.3394774,95215.0,95214.0,0.008]
[1745926288539,0.3394774,95215.0,95214.0,0.2179796]
[1745926291335,0.3394774,95215.0,95214.0,0.2169796]
[1745926292132,0.3394774,95215.0,95214.0,0.2159796]
[1745926292538,0.3394774,95215.0,95214.0,0.006]
[1745926293336,0.3394774,95215.0,95214.0,0.2159796]
[1745926294533,0.3394774,95215.0,95214.0,0.2149796]
[1745926294838,0.3384774,95215.0,95214.0,0.2119796]
[1745926295028,0.3394774,95215.0,95214.0,0.2139796]
[1745926297534,0.1295,95215.0,95214.0,0.2139796]
[1745926297739,0.3394774,95215.0,95214.0,0.2139796]
[1745926297939,0.0656,95215.0,95214.0,0.2139796]
[1745926298235,0.0524915,95221.0,95214.0,0.2139796]
[1745926298236,0.5707538,95226.0,95225.0,0.2099553]
[1745926298435,0.3608,95226.0,95225.0,0.2099553]
[1745926298641,0.5707531,95226.0,95225.0,0.2099553]
[1745926299041,0.2099531,95226.0,95225.0,0.2099553]
[1745926299433,0.0732,95228.0,95227.0,0.2099509]
[1745926299844,0.2831487,95228.0,95227.0,0.2099509]
[1745926300330,0.0732,95228.0,95227.0,0.2099509]
[1745926300736,0.2831487,95228.0,95227.0,0.2679509]
[1745926301035,0.3593487,95228.0,95227.0,0.2679509]
[1745926301238,0.00854647,95250.0,95237.0,0.0524822]
[1745926301541,0.2191,95243.0,95242.0,0.2099178]
[1745926301843,0.1459,95243.0,95242.0,0.2099178]
[1745926302537,0.0762,95243.0,95242.0,0.21816781]
[1745926302941,0.0802,95243.0,95242.0,0.21916781]
[1745926304135,0.0802,95243.0,95242.0,0.37916781]
[1745926304337,0.0802,95243.0,95242.0,0.21916781]
[1745926304935,0.0802,95243.0,95242.0,0.36916781]
[1745926305136,0.0852,95243.0,95242.0,0.21916781]
[1745926306437,0.009,95243.0,95242.0,0.21916781]
[1745926307146,0.009,95243.0,95242.0,0.32416381]
[1745926313050,0.009,95243.0,95242.0,0.21916781]
[1745926313353,0.009,95243.0,95242.0,0.27716781]
[1745926315340,0.009,95243.0,95242.0,0.2689178]
[1745926315540,0.2189156,95243.0,95242.0,0.2109178]
[1745926316545,0.3665156,95243.0,95242.0,0.2109178]
[1745926316938,0.3665156,95243.0,95242.0,0.001]
[1745926317149,0.3665156,95243.0,95242.0,0.2109178]
[1745926325356,0.2099399,95232.0,95231.0,0.0524854]
[1745926325547,0.2099399,95232.0,95231.0,0.3149037]
[1745926325743,0.2099399,95232.0,95231.0,0.2624183]
[1745926326461,0.3540399,95232.0,95231.0,0.2624183]
[1745926326854,0.3560399,95232.0,95231.0,0.2624183]
[1745926327161,0.3580399,95232.0,95231.0,0.2634183]
[1745926327458,0.3580399,95232.0,95231.0,0.001]
[1745926329760,0.3580399,95232.0,95231.0,0.2109421]
[1745926333049,0.3580399,95232.0,95231.0,0.001]
[1745926333254,0.3580399,95232.0,95231.0,0.2109421]
[1745926334361,0.3580399,95232.0,95231.0,0.001]
[1745926334549,0.3580399,95232.0,95216.0,0.1049859]
[1745926334550,0.2099752,95217.0,95216.0,0.1049859]
[1745926334756,0.5707752,95217.0,95216.0,0.2624545]
[1745926335852,0.7218752,95217.0,95216.0,0.2624545]
[1745926336053,0.3610752,95217.0,95216.0,0.2634545]
[1745926336459,0.3610752,95217.0,95216.0,0.6252545]
[1745926337362,0.3610752,95217.0,95216.0,0.3628]
[1745926337557,0.3610752,95217.0,95216.0,0.002]
[1745926339657,0.3610752,95217.0,95216.0,0.001]
[1745926339861,0.3610752,95217.0,95216.0,0.002]
[1745926340968,0.3610752,95217.0,95216.0,0.2119752]
[1745926345059,0.3610752,95217.0,95216.0,0.002]
[1745926345658,0.3610752,95217.0,95216.0,0.2119752]
[1745926346967,0.3610752,95217.0,95216.0,0.002]
[1745926352871,0.7218752,95217.0,95216.0,0.002]
[1745926356773,0.2099884,95210.0,95209.0,0.2099896]
[1745926357765,0.3527884,95210.0,95209.0,0.2099896]
[1745926357962,0.3537884,95210.0,95209.0,0.2119896]
[1745926359277,0.3537884,95210.0,95209.0,0.2139896]
[1745926361881,0.3537884,95210.0,95209.0,0.004]
[1745926362576,0.3537884,95210.0,95209.0,0.2139906]
[1745926362879,0.3537884,95210.0,95209.0,0.004]
[1745926363079,0.3537884,95210.0,95209.0,0.2139906]
[1745926364495,0.001,95210.0,95209.0,0.5747906]
[1745926364775,0.3608,95226.0,95225.0,0.2099553]
[1745926364984,0.0524846,95233.0,95232.0,0.2099399]
[1745926365169,0.2624236,95233.0,95232.0,0.2099399]
[1745926365877,0.3390236,95233.0,95232.0,0.2709399]
[1745926366075,0.2099321,95238.0,95237.0,0.2099197]
[1745926366278,0.2099238,95240.0,95239.0,0.2099223]
[1745926366975,0.2099238,95240.0,95239.0,0.3475223]
[1745926368077,0.2149238,95240.0,95239.0,0.3485223]
[1745926368872,0.2199238,95240.0,95239.0,0.3495223]
[1745926369484,0.5807238,95240.0,95239.0,0.3495223]
[1745926370873,0.3708,95240.0,95239.0,0.3495223]
[1745926371276,0.01,95240.0,95239.0,0.3495223]
[1745926372779,0.01,95240.0,95239.0,0.4545223]
[1745926372979,0.5706958,95252.0,95251.0,0.209898]
[1745926373381,0.3608,95252.0,95251.0,0.209898]
[1745926373684,0.0745,95254.0,95253.0,0.2098936]
[1745926373887,0.0713,95261.0,95254.0,0.2098914]
[1745926374077,0.2098831,95258.0,95254.0,0.2098914]
[1745926374388,0.0713,95261.0,95254.0,0.2098914]
[1745926374586,0.2098832,95258.0,95254.0,0.2098914]
[1745926374980,0.0524704,95259.0,95254.0,0.2098914]
[1745926375173,0.2847892,95255.0,95254.0,0.2098914]
[1745926375679,0.0749,95255.0,95254.0,0.2098914]
[1745926376083,0.218,95255.0,95254.0,0.2098914]
[1745926376688,0.218,95255.0,95254.0,0.2177128]
[1745926376986,0.4378892,95255.0,95254.0,0.2187128]
[1745926377487,0.228,95255.0,95254.0,0.2187128]
[1745926377690,0.223,95255.0,95254.0,0.2177128]
[1745926377992,0.218,95255.0,95254.0,0.2177128]
[1745926378291,0.4278892,95255.0,95254.0,0.2177128]
[1745926379586,0.4288892,95255.0,95254.0,0.2098914]
[1745926379791,0.052475,95252.0,95248.0,0.413276]
[1745926379993,0.3148524,95252.0,95251.0,0.2098914]
[1745926380487,0.2623774,95252.0,95251.0,0.2098914]
[1745926381076,0.2653774,95252.0,95251.0,0.2098914]
[1745926381286,0.2683774,95252.0,95251.0,0.2098914]
[1745926381790,0.2129024,95252.0,95251.0,0.2098914]
[1745926382088,0.005,95252.0,95251.0,0.2098914]
[1745926382683,0.005,95252.0,95251.0,0.2865914]
[1745926382987,0.004,95252.0,95251.0,0.2865914]
[1745926383384,0.004,95252.0,95251.0,0.29462524]
[1745926383886,0.002,95252.0,95251.0,0.29462524]
[1745926384187,0.2128958,95252.0,95251.0,0.21792524]
[1745926384783,0.2108958,95252.0,95251.0,0.21792524]
[1745926384988,0.2128958,95252.0,95251.0,0.2098914]
[1745926385189,0.0524791,95243.0,95238.0,0.0524811]
[1745926385489,0.2099245,95240.0,95239.0,0.2099223]
[1745926385992,0.2860223,95242.0,95241.0,0.20992]
[1745926386382,0.2860223,95242.0,95241.0,1.70992]
[1745926387789,0.0781,95242.0,95241.0,1.70992]
[1745926388089,0.0811,95242.0,95241.0,1.70992]
[1745926388590,0.2910178,95242.0,95241.0,1.70992]
[1745926389580,0.2900178,95242.0,95241.0,1.70992]
[1745926391781,0.2910178,95242.0,95241.0,1.70992]
[1745926392893,0.2890178,95242.0,95241.0,0.20992]
[1745926393091,0.2910178,95242.0,95241.0,0.20992]
[1745926393292,0.0811,95242.0,95229.0,0.3608]
[1745926393588,0.5707333,95235.0,95210.0,0.3608]
[1745926393790,0.5707333,95235.0,95229.0,0.2099456]
[1745926393986,0.5707333,95235.0,95230.0,0.2099429]
[1745926394182,0.5707333,95235.0,95232.0,0.2099393]
[1745926394385,0.5707333,95235.0,95216.0,0.00888995]
[1745926394579,0.5707333,95235.0,95234.0,0.21151064]
[1745926396390,0.5727333,95235.0,95234.0,0.21151064]
[1745926396880,0.5737333,95235.0,95234.0,0.21151064]
[1745926397283,0.5737333,95235.0,95234.0,0.00157514]
[1745926397485,0.5747333,95235.0,95234.0,0.00157514]
[1745926398689,0.5747333,95235.0,95234.0,0.21151064]
[1745926398884,0.6464333,95235.0,95234.0,0.21151064]
[1745926401085,0.6464333,95235.0,95234.0,0.00157514]
[1745926402188,0.6464333,95235.0,95234.0,0.21151064]
[1745926402997,0.6464333,95235.0,95234.0,0.00157514]
[1745926405197,0.6464333,95235.0,95234.0,0.21151064]
[1745926405898,0.2099553,95226.0,95225.0,0.2099553]
[1745926406200,0.2099685,95219.0,95218.0,0.1049846]
[1745926406586,0.2624821,95213.0,95212.0,0.2099724]
[1745926406785,0.2624821,95213.0,95212.0,0.21776888]
[1745926406984,0.2624821,95213.0,95212.0,0.32279688]
[1745926407189,0.2624821,95213.0,95212.0,0.21776888]
[1745926408287,0.2808775,95215.0,95214.0,0.2099796]
[1745926409496,0.2808775,95215.0,95214.0,0.2129796]
[1745926410397,0.2808775,95215.0,95214.0,0.2159796]
[1745926411691,0.2828775,95215.0,95214.0,0.2129796]
[1745926412487,0.2838775,95215.0,95214.0,0.2129796]
[1745926413000,0.0759,95215.0,95214.0,0.2099796]
[1745926413203,0.0759,95215.0,95214.0,0.5707796]
[1745926413589,0.0759,95215.0,95214.0,0.3449796]
[1745926413796,0.0759,95215.0,95214.0,0.7057796]
[1745926414303,0.0739,95215.0,95214.0,0.3449796]
[1745926414598,0.0749,95215.0,95214.0,0.3449796]
[1745926414990,0.0739,95215.0,95214.0,0.3449796]
[1745926415700,0.2838774,95215.0,95214.0,0.3449796]
[1745926418593,0.0739,95215.0,95214.0,0.3449796]
[1745926419506,0.1458,95215.0,95214.0,0.3449796]
[1745926426204,0.2194,95215.0,95214.0,0.3449796]
[1745926426512,0.4293774,95215.0,95214.0,0.2684796]
[1745926426811,0.4293774,95215.0,95214.0,0.2099796]
[1745926427215,0.2099818,95213.0,95212.0,0.21777868]
[1745926428301,0.2119818,95213.0,95212.0,0.21777868]
[1745926428507,0.2129818,95213.0,95212.0,0.21777868]
[1745926430306,0.2139818,95213.0,95212.0,0.21777868]
[1745926430812,0.2139818,95213.0,95212.0,0.2099822]
[1745926431008,0.0524993,95206.0,95202.0,0.00157559]
[1745926431314,0.2800038,95205.0,95204.0,0.2099994]
[1745926431507,0.3556038,95205.0,95204.0,0.2099994]
[1745926432109,0.7164038,95205.0,95204.0,0.2099994]
[1745926434004,0.7174038,95205.0,95204.0,0.2099994]
[1745926443121,0.7174038,95205.0,95203.0,0.0525001]
[1745926443323,0.2836016,95204.0,95203.0,0.2625039]
[1745926443824,0.3569016,95204.0,95203.0,0.2625039]
[1745926449720,0.1469,95204.0,95202.0,0.00157559]
[1745926449918,0.2100038,95203.0,95202.0,0.00157559]
[1745926450127,0.2100193,95196.0,95195.0,0.31607387]
[1745926451025,0.3613193,95196.0,95195.0,0.31607387]
[1745926451923,0.3613193,95196.0,95195.0,0.32007387]
[1745926452421,0.7221193,95196.0,95195.0,0.32007387]
[1745926454713,0.7221193,95196.0,95195.0,0.32809072]
[1745926456025,0.3613193,95196.0,95195.0,0.32809072]
[1745926456229,0.7221193,95196.0,95195.0,0.32809072]
[1745926460616,0.7221193,95196.0,95195.0,0.27558562]
[1745926460931,0.7221193,95196.0,95195.0,0.00505047]
[1745926461121,0.7221193,95196.0,95195.0,0.21507197]
[1745926462130,0.7221193,95196.0,95195.0,0.00505047]
[1745926462432,0.7221193,95196.0,95195.0,0.21507197]
[1745926463128,0.7221193,95196.0,95195.0,0.00505047]
[1745926464734,0.7221193,95196.0,95195.0,0.21507197]
[1745926465131,0.7221193,95196.0,95195.0,0.00505047]
[1745926465334,0.7221193,95196.0,95195.0,0.21507197]
[1745926470034,0.7221193,95196.0,95195.0,0.00505047]
[1745926470431,0.7221193,95196.0,95195.0,0.21507197]
[1745926470632,0.7221193,95196.0,95195.0,0.00505047]
[1745926470827,0.7221193,95196.0,95195.0,0.21507197]
[1745926471023,0.5121,95196.0,95195.0,0.21507197]
[1745926471231,0.4378,95196.0,95195.0,0.21507197]
[1745926471536,0.6478193,95196.0,95195.0,0.21507197]
[1745926471831,0.6478193,95196.0,95195.0,0.35207197]
[1745926472424,0.2870193,95196.0,95195.0,0.71287197]
[1745926475034,0.077,95196.0,95195.0,0.71287197]
[1745926475232,0.2870193,95196.0,95195.0,0.71287197]
[1745926477738,0.2870193,95196.0,95195.0,0.57587197]
[1745926478239,0.2870193,95196.0,95195.0,0.21507197]
[1745926479551,0.3621193,95196.0,95195.0,0.21507197]
[1745926481033,0.1521,95196.0,95195.0,0.21507197]
[1745926481339,0.3621193,95196.0,95195.0,0.21507197]
[1745926483840,0.3621193,95196.0,95195.0,0.00505047]
[1745926484248,0.2100524,95181.0,95180.0,0.6291546]
[1745926484539,0.2100524,95181.0,95180.0,0.2100546]
[1745926485139,0.3621524,95181.0,95180.0,0.2100546]
[1745926485533,0.3631524,95181.0,95180.0,0.2150546]
[1745926485735,0.3631524,95181.0,95180.0,0.22793341]
[1745926486944,0.1531,95181.0,95180.0,0.22793341]
[1745926491041,0.1531,95181.0,95180.0,0.58873341]
[1745926491342,0.1531,95181.0,95180.0,0.22793341]
[1745926492348,0.1531,95181.0,95180.0,0.28793341]
[1745926492546,0.3631524,95181.0,95180.0,0.22793341]
[1745926493043,0.1531,95181.0,95180.0,0.22793341]
[1745926493446,0.3631524,95181.0,95180.0,0.22793341]
[1745926503255,0.1531,95181.0,95180.0,0.22793341]
[1745926504045,0.1531,95181.0,95180.0,0.36503341]
[1745926505255,0.1531,95181.0,95180.0,0.22793341]
[1745926505643,0.3631524,95181.0,95180.0,0.22793341]
[1745926505850,0.1531,95181.0,95180.0,0.22793341]
[1745926506255,0.3631524,95181.0,95180.0,0.22793341]
[1745926506451,0.1531,95181.0,95180.0,0.22793341]
[1745926507155,0.3631524,95181.0,95180.0,0.22793341]
[1745926510462,0.3631524,95181.0,95180.0,0.22493341]
[1745926511151,0.3631524,95181.0,95180.0,0.22293341]
[1745926513157,0.1531,95181.0,95180.0,0.22293341]
[1745926513354,0.3631524,95181.0,95180.0,0.22293341]